[Event "*** Titled Tuesday Blitz"]
[Site "Chess.com"]
[Date "2019.05.07"]
[Round "3"]
[White "FMJoseHerrera"]
[Black "Jahonas"]
[Result "0-1"]
[WhiteElo "2479"]
[BlackElo "2330"]
[TimeControl "180+2"]
[EndTime "13:35:51 PDT"]
[Termination "Jahonas won by resignation"]

1. Nf3 {[%clk 0:03:01.9]} 1... Nf6 {[%clk 0:03:00.5]} 2. g3 {[%clk 0:03:03.8]}
2... e6 {[%clk 0:03:01.6]} 3. Bg2 {[%clk 0:03:05]} 3... d5 {[%clk 0:03:02.9]} 4.
O-O {[%clk 0:03:06.2]} 4... Be7 {[%clk 0:03:04.2]} 5. d3 {[%clk 0:03:06.1]} 5...
Nbd7 {[%clk 0:03:05.5]} 6. c3 {[%clk 0:03:08]} 6... O-O {[%clk 0:03:06.4]} 7. a3
{[%clk 0:03:09.9]} 7... c5 {[%clk 0:03:07.5]} 8. b4 {[%clk 0:03:10.8]} 8... b6
{[%clk 0:03:08.8]} 9. Nbd2 {[%clk 0:03:11.5]} 9... Bb7 {[%clk 0:03:10.1]} 10.
Bb2 {[%clk 0:03:13.1]} 10... Qc7 {[%clk 0:03:11.2]} 11. Qb3 {[%clk 0:03:14.7]}
11... e5 {[%clk 0:03:11.6]} 12. Nh4 {[%clk 0:03:13.8]} 12... Rfe8 {[%clk
0:03:11.4]} 13. Rac1 {[%clk 0:03:13.7]} 13... Bf8 {[%clk 0:03:11.2]} 14. Rfd1
{[%clk 0:03:14.5]} 14... Rad8 {[%clk 0:03:11.1]} 15. Qa2 {[%clk 0:03:11.4]}
15... Qb8 {[%clk 0:03:09.7]} 16. b5 {[%clk 0:03:08.8]} 16... d4 {[%clk
0:03:06.2]} 17. cxd4 {[%clk 0:03:06]} 17... exd4 {[%clk 0:03:04.6]} 18. Ne4
{[%clk 0:03:02.6]} 18... Nxe4 {[%clk 0:03:04.8]} 19. dxe4 {[%clk 0:03:04.5]}
19... Ne5 {[%clk 0:02:58.8]} 20. Nf5 {[%clk 0:03:00.3]} 20... g6 {[%clk
0:02:58.4]} 21. Nh4 {[%clk 0:02:56]} 21... Be7 {[%clk 0:02:53.7]} 22. f4 {[%clk
0:02:28.5]} 22... Bxh4 {[%clk 0:02:50.5]} 23. fxe5 {[%clk 0:02:29.3]} 23... Bg5
{[%clk 0:02:49.3]} 24. Rf1 {[%clk 0:02:28.4]} 24... Be3+ {[%clk 0:02:47.8]} 25.
Kh1 {[%clk 0:02:28.8]} 25... Re7 {[%clk 0:02:46.2]} 26. e6 {[%clk 0:02:28.3]}
26... Rxe6 {[%clk 0:02:41.1]} 27. Rcd1 {[%clk 0:02:28.7]} 27... Qa8 {[%clk
0:02:35.4]} 28. Bc1 {[%clk 0:01:39.7]} 28... Bxe4 {[%clk 0:02:32.9]} 29. Bf3
{[%clk 0:01:40.5]} 29... Bxc1 {[%clk 0:02:28.9]} 30. Rxc1 {[%clk 0:01:39.6]}
30... d3 {[%clk 0:02:28]} 31. Kg1 {[%clk 0:01:30.8]} 31... Bxf3 {[%clk
0:02:17.8]} 32. exf3 {[%clk 0:01:29.6]} 32... Re2 {[%clk 0:02:10.3]} 33. Qc4
{[%clk 0:01:30.2]} 33... Qd5 {[%clk 0:02:08.1]} 34. Rfd1 {[%clk 0:01:27.1]}
34... Qxf3 {[%clk 0:01:53.1]} 0-1

[Event "*** Titled Tuesday Blitz"]
[Site "Chess.com"]
[Date "2019.05.07"]
[Round "3"]
[White "jcibarra"]
[Black "Alexander_Moskalenko"]
[Result "0-1"]
[WhiteElo "2702"]
[BlackElo "2871"]
[TimeControl "180+2"]
[EndTime "13:35:56 PDT"]
[Termination "Alexander_Moskalenko won by resignation"]

1. Nf3 {[%clk 0:03:01.9]} 1... d5 {[%clk 0:02:54.2]} 2. b3 {[%clk 0:03:00.1]}
2... c6 {[%clk 0:02:55.9]} 3. Bb2 {[%clk 0:03:00.3]} 3... Nf6 {[%clk 0:02:53]}
4. c4 {[%clk 0:02:54.1]} 4... Bf5 {[%clk 0:02:52.1]} 5. g3 {[%clk 0:02:48.6]}
5... e6 {[%clk 0:02:53.4]} 6. Bg2 {[%clk 0:02:49]} 6... Nbd7 {[%clk 0:02:54.6]}
7. O-O {[%clk 0:02:50.1]} 7... Be7 {[%clk 0:02:55.6]} 8. Nh4 {[%clk 0:02:48.6]}
8... Be4 {[%clk 0:02:54.3]} 9. f3 {[%clk 0:02:46.6]} 9... Bxb1 {[%clk
0:02:53.8]} 10. Qxb1 {[%clk 0:02:40.4]} 10... g5 {[%clk 0:02:55.4]} 11. Nf5
{[%clk 0:02:33.3]} 11... exf5 {[%clk 0:02:55.1]} 12. Qxf5 {[%clk 0:02:35.2]}
12... dxc4 {[%clk 0:02:42.8]} 13. e4 {[%clk 0:02:27.8]} 13... cxb3 {[%clk
0:02:44.1]} 14. e5 {[%clk 0:02:27.1]} 14... Nd5 {[%clk 0:02:40.1]} 15. e6 {[%clk
0:02:19.1]} 15... fxe6 {[%clk 0:02:40.8]} 16. Qxe6 {[%clk 0:02:20.6]} 16... Qb6+
{[%clk 0:02:42.1]} 17. Kh1 {[%clk 0:02:18.8]} 17... Rf8 {[%clk 0:02:43.5]} 18.
f4 {[%clk 0:02:00.5]} 18... gxf4 {[%clk 0:02:39.7]} 19. Rfe1 {[%clk 0:01:57.7]}
19... f3 {[%clk 0:02:37.3]} 20. Bh3 {[%clk 0:01:55]} 20... O-O-O {[%clk
0:02:38.2]} 21. Be5 {[%clk 0:01:45.3]} 21... Bf6 {[%clk 0:02:32.1]} 22. axb3
{[%clk 0:01:23]} 22... Bxe5 {[%clk 0:02:28.4]} 23. Rxe5 {[%clk 0:01:21.4]} 23...
f2 {[%clk 0:02:27.5]} 24. Qd6 {[%clk 0:01:03.3]} 24... Qc7 {[%clk 0:02:20.7]}
25. Rxd5 {[%clk 0:01:00.3]} 25... f1=Q+ {[%clk 0:02:13.7]} 26. Bxf1 {[%clk
0:00:48.7]} 26... cxd5 {[%clk 0:02:14.8]} 27. Qa3 {[%clk 0:00:44.8]} 27... Qb6
{[%clk 0:02:08.5]} 0-1

[Event "*** Titled Tuesday Blitz"]
[Site "Chess.com"]
[Date "2019.05.07"]
[Round "3"]
[White "FedaMaster"]
[Black "TristanCalistri"]
[Result "1-0"]
[WhiteElo "2312"]
[BlackElo "2186"]
[TimeControl "180+2"]
[EndTime "13:36:00 PDT"]
[Termination "FedaMaster won by resignation"]

1. e4 {[%clk 0:03:01.7]} 1... e5 {[%clk 0:02:46]} 2. Nf3 {[%clk 0:03:02.5]} 2...
d6 {[%clk 0:02:44.5]} 3. d4 {[%clk 0:03:00.9]} 3... exd4 {[%clk 0:02:43.1]} 4.
Qxd4 {[%clk 0:03:02]} 4... Nf6 {[%clk 0:02:43.3]} 5. Nc3 {[%clk 0:03:02.4]} 5...
Be7 {[%clk 0:02:43.6]} 6. Bg5 {[%clk 0:03:01.7]} 6... O-O {[%clk 0:02:44.5]} 7.
O-O-O {[%clk 0:02:59.4]} 7... Nc6 {[%clk 0:02:45.6]} 8. Qd2 {[%clk 0:03:00]}
8... Be6 {[%clk 0:02:45.8]} 9. Kb1 {[%clk 0:03:00]} 9... a6 {[%clk 0:02:45.9]}
10. Bd3 {[%clk 0:02:52.8]} 10... b5 {[%clk 0:02:44.7]} 11. Ne2 {[%clk
0:02:48.7]} 11... Ne5 {[%clk 0:02:31.5]} 12. Ned4 {[%clk 0:02:30.4]} 12... Qd7
{[%clk 0:01:59.9]} 13. Nxe6 {[%clk 0:02:27.5]} 13... Qxe6 {[%clk 0:01:58.5]} 14.
Nd4 {[%clk 0:02:26.7]} 14... Qd7 {[%clk 0:01:56.4]} 15. Nf5 {[%clk 0:02:24.7]}
15... Bd8 {[%clk 0:01:46.3]} 16. Rhe1 {[%clk 0:02:12.7]} 16... Nxd3 {[%clk
0:01:39.7]} 17. Qxd3 {[%clk 0:02:04.4]} 17... Qc6 {[%clk 0:01:31.3]} 18. Qg3
{[%clk 0:01:22.6]} 18... Nxe4 {[%clk 0:01:06]} 19. Bxd8 {[%clk 0:01:16.8]} 19...
Nxg3 {[%clk 0:01:03.6]} 20. Ne7+ {[%clk 0:01:17.8]} 20... Kh8 {[%clk 0:01:01.6]}
21. Nxc6 {[%clk 0:01:18.8]} 1-0

[Event "*** Titled Tuesday Blitz"]
[Site "Chess.com"]
[Date "2019.05.07"]
[Round "3"]
[White "Simoncelli15"]
[Black "kacprekt"]
[Result "1-0"]
[WhiteElo "2266"]
[BlackElo "2303"]
[TimeControl "180+2"]
[EndTime "13:36:28 PDT"]
[Termination "Simoncelli15 won by resignation"]

1. e4 {[%clk 0:03:01.9]} 1... c6 {[%clk 0:02:56.2]} 2. d4 {[%clk 0:03:02.4]}
2... d5 {[%clk 0:02:57.8]} 3. e5 {[%clk 0:03:04]} 3... Bf5 {[%clk 0:02:56.8]} 4.
Nd2 {[%clk 0:03:05.5]} 4... c5 {[%clk 0:02:47.4]} 5. dxc5 {[%clk 0:03:02.8]}
5... Nc6 {[%clk 0:02:46.2]} 6. f4 {[%clk 0:02:57.6]} 6... e6 {[%clk 0:02:43.9]}
7. Nb3 {[%clk 0:02:56.9]} 7... h5 {[%clk 0:02:36.5]} 8. Be3 {[%clk 0:02:43.2]}
8... Nh6 {[%clk 0:02:36.4]} 9. Nf3 {[%clk 0:02:40.9]} 9... Be7 {[%clk
0:02:29.5]} 10. Bd3 {[%clk 0:02:37.3]} 10... g6 {[%clk 0:02:30.3]} 11. c3 {[%clk
0:02:26]} 11... a5 {[%clk 0:02:27.9]} 12. a4 {[%clk 0:02:25]} 12... Ng4 {[%clk
0:02:27.2]} 13. Bg1 {[%clk 0:02:24.8]} 13... Be4 {[%clk 0:02:24.8]} 14. Bxe4
{[%clk 0:02:11.7]} 14... dxe4 {[%clk 0:02:26.7]} 15. Qxd8+ {[%clk 0:02:12.5]}
15... Rxd8 {[%clk 0:02:27.4]} 16. Nfd2 {[%clk 0:02:13.9]} 16... e3 {[%clk
0:02:25.1]} 17. Nc4 {[%clk 0:02:15.2]} 17... Rd5 {[%clk 0:02:12.2]} 18. Nd6+
{[%clk 0:02:03.8]} 18... Kf8 {[%clk 0:02:07.2]} 19. h3 {[%clk 0:01:44.8]} 19...
Bh4+ {[%clk 0:02:06.4]} 20. Ke2 {[%clk 0:01:37.5]} 20... Nf2 {[%clk 0:01:54.8]}
21. Bxf2 {[%clk 0:01:30.2]} 21... exf2 {[%clk 0:01:56.1]} 22. c4 {[%clk
0:00:43.2]} 22... Nd4+ {[%clk 0:01:49]} 23. Nxd4 {[%clk 0:00:43.9]} 23... Rxd4
{[%clk 0:01:50.2]} 24. Ke3 {[%clk 0:00:45]} 24... Rxd6 {[%clk 0:01:30.2]} 25.
cxd6 {[%clk 0:00:44.7]} 25... Bg3 {[%clk 0:01:31.7]} 26. h4 {[%clk 0:00:43]} 1-0

[Event "*** Titled Tuesday Blitz"]
[Site "Chess.com"]
[Date "2019.05.07"]
[Round "3"]
[White "albi1999"]
[Black "ruvat"]
[Result "1-0"]
[WhiteElo "2525"]
[BlackElo "2328"]
[TimeControl "180+2"]
[EndTime "13:36:37 PDT"]
[Termination "albi1999 won by resignation"]

1. d4 {[%clk 0:02:43.9]} 1... d6 {[%clk 0:03:00.7]} 2. Nf3 {[%clk 0:02:43.2]}
2... g6 {[%clk 0:03:00.7]} 3. g3 {[%clk 0:02:44.5]} 3... Bg7 {[%clk 0:03:01.3]}
4. Bg2 {[%clk 0:02:42.9]} 4... Nf6 {[%clk 0:03:02.6]} 5. O-O {[%clk 0:02:42.1]}
5... O-O {[%clk 0:03:04.1]} 6. b3 {[%clk 0:02:43.9]} 6... e5 {[%clk 0:02:59.7]}
7. dxe5 {[%clk 0:02:40.8]} 7... Ng4 {[%clk 0:03:00]} 8. Bb2 {[%clk 0:02:41.6]}
8... Nd7 {[%clk 0:02:52.4]} 9. c4 {[%clk 0:02:41.8]} 9... dxe5 {[%clk
0:02:45.4]} 10. h3 {[%clk 0:02:38.6]} 10... Nh6 {[%clk 0:02:46.2]} 11. Nc3
{[%clk 0:02:28.4]} 11... c6 {[%clk 0:02:46.6]} 12. Ne4 {[%clk 0:02:25.3]} 12...
f6 {[%clk 0:02:35.7]} 13. Ba3 {[%clk 0:02:22.4]} 13... Re8 {[%clk 0:02:33.2]}
14. Nd6 {[%clk 0:02:22.5]} 14... Re6 {[%clk 0:02:31.1]} 15. Qd2 {[%clk 0:02:21]}
15... Nf7 {[%clk 0:02:28.2]} 16. Nxc8 {[%clk 0:02:18]} 16... Qxc8 {[%clk
0:02:26.6]} 17. Rad1 {[%clk 0:02:19.4]} 17... Nf8 {[%clk 0:02:24.8]} 18. h4
{[%clk 0:02:20.2]} 18... Re8 {[%clk 0:02:25]} 19. Kh2 {[%clk 0:02:19.1]} 19...
Qc7 {[%clk 0:02:24.4]} 20. Bh3 {[%clk 0:02:12.7]} 20... Rad8 {[%clk 0:02:23.5]}
21. Qc2 {[%clk 0:02:13.9]} 21... Rxd1 {[%clk 0:02:13.2]} 22. Rxd1 {[%clk
0:02:15.8]} 22... Ne6 {[%clk 0:02:09.7]} 23. Bc1 {[%clk 0:02:01.6]} 23... Bf8
{[%clk 0:02:00.9]} 24. Be3 {[%clk 0:01:59.8]} 24... Nfd8 {[%clk 0:01:34]} 25.
Qd2 {[%clk 0:01:34.8]} 25... f5 {[%clk 0:01:22.1]} 26. Qd7 {[%clk 0:01:33.3]}
26... Qxd7 {[%clk 0:01:20.3]} 27. Rxd7 {[%clk 0:01:35.2]} 27... Bg7 {[%clk
0:01:04]} 28. Bxa7 {[%clk 0:01:24.4]} 28... e4 {[%clk 0:01:05.2]} 29. Ne1 {[%clk
0:01:21.3]} 29... Bd4 {[%clk 0:01:01.4]} 30. Bxd4 {[%clk 0:01:21.1]} 1-0

[Event "*** Titled Tuesday Blitz"]
[Site "Chess.com"]
[Date "2019.05.07"]
[Round "3"]
[White "ShimanovAlex"]
[Black "AliKa2810"]
[Result "1-0"]
[WhiteElo "2835"]
[BlackElo "2497"]
[TimeControl "180+2"]
[EndTime "13:36:38 PDT"]
[Termination "ShimanovAlex won by resignation"]

1. g3 {[%clk 0:02:41.1]} 1... Nf6 {[%clk 0:03:00]} 2. Bg2 {[%clk 0:02:41.2]}
2... g6 {[%clk 0:03:01.2]} 3. c4 {[%clk 0:02:42.7]} 3... Bg7 {[%clk 0:03:02.3]}
4. Nc3 {[%clk 0:02:44.2]} 4... O-O {[%clk 0:03:03.1]} 5. d3 {[%clk 0:02:44.8]}
5... d6 {[%clk 0:03:04.2]} 6. Nf3 {[%clk 0:02:45.5]} 6... e5 {[%clk 0:03:05.7]}
7. O-O {[%clk 0:02:46.9]} 7... c5 {[%clk 0:03:02.4]} 8. a3 {[%clk 0:02:46.6]}
8... Nc6 {[%clk 0:03:03.8]} 9. Rb1 {[%clk 0:02:47.6]} 9... h6 {[%clk 0:02:59.8]}
10. b4 {[%clk 0:02:47]} 10... Be6 {[%clk 0:03:00.4]} 11. bxc5 {[%clk 0:02:45.5]}
11... dxc5 {[%clk 0:02:29.1]} 12. Rxb7 {[%clk 0:02:45.5]} 12... Rb8 {[%clk
0:02:22.7]} 13. Rb5 {[%clk 0:02:37]} 13... Qd6 {[%clk 0:02:17]} 14. Nd2 {[%clk
0:02:37.4]} 14... Rxb5 {[%clk 0:02:08.9]} 15. cxb5 {[%clk 0:02:37]} 15... Nd4
{[%clk 0:02:09]} 16. e3 {[%clk 0:02:35.5]} 16... Nf5 {[%clk 0:02:04.5]} 17. Nc4
{[%clk 0:02:36.5]} 17... Qc7 {[%clk 0:02:01.9]} 18. a4 {[%clk 0:02:36.3]} 18...
Rd8 {[%clk 0:02:01.9]} 19. Qc2 {[%clk 0:02:37.8]} 19... h5 {[%clk 0:01:47.1]}
20. Ba3 {[%clk 0:02:32.7]} 20... h4 {[%clk 0:01:44.9]} 21. Ne4 {[%clk
0:02:32.3]} 21... hxg3 {[%clk 0:01:29]} 22. hxg3 {[%clk 0:02:31.3]} 22... Nd7
{[%clk 0:01:07.7]} 23. Rc1 {[%clk 0:02:30.9]} 23... Bf8 {[%clk 0:01:00]} 24. Ng5
{[%clk 0:02:20.3]} 24... Bxc4 {[%clk 0:00:54.4]} 25. Qxc4 {[%clk 0:02:16]} 25...
Nb6 {[%clk 0:00:55.3]} 26. Qb3 {[%clk 0:02:17]} 26... Rc8 {[%clk 0:00:04.9]} 27.
a5 {[%clk 0:02:14.4]} 27... c4 {[%clk 0:00:03.8]} 28. axb6 {[%clk 0:02:11.7]}
28... cxb3 {[%clk 0:00:03]} 29. Rxc7 {[%clk 0:02:11.9]} 29... Rb8 {[%clk
0:00:02.1]} 30. bxa7 {[%clk 0:02:11.9]} 1-0

[Event "*** Titled Tuesday Blitz"]
[Site "Chess.com"]
[Date "2019.05.07"]
[Round "3"]
[White "spicycaterpillar"]
[Black "Matibar"]
[Result "1/2-1/2"]
[WhiteElo "2823"]
[BlackElo "2736"]
[TimeControl "180+2"]
[EndTime "13:36:41 PDT"]
[Termination "Game drawn by repetition"]

1. e4 {[%clk 0:03:01.9]} 1... e5 {[%clk 0:03:00.4]} 2. Nf3 {[%clk 0:03:02.7]}
2... Nc6 {[%clk 0:03:02.1]} 3. Bb5 {[%clk 0:03:03.4]} 3... a6 {[%clk 0:03:02.6]}
4. Ba4 {[%clk 0:03:04.5]} 4... Nf6 {[%clk 0:03:04.2]} 5. O-O {[%clk 0:03:04.9]}
5... b5 {[%clk 0:03:05.7]} 6. Bb3 {[%clk 0:03:05.6]} 6... Bb7 {[%clk 0:03:07.3]}
7. d3 {[%clk 0:02:44.1]} 7... Be7 {[%clk 0:03:08]} 8. Nc3 {[%clk 0:02:37.9]}
8... O-O {[%clk 0:03:04.9]} 9. a3 {[%clk 0:02:15.8]} 9... d6 {[%clk 0:03:00.9]}
10. Re1 {[%clk 0:02:16.5]} 10... Nd4 {[%clk 0:02:56.5]} 11. Nxd4 {[%clk
0:02:10]} 11... exd4 {[%clk 0:02:58.4]} 12. Ne2 {[%clk 0:02:09.3]} 12... c5
{[%clk 0:03:00]} 13. Ng3 {[%clk 0:02:08.2]} 13... Qc7 {[%clk 0:02:48.7]} 14. Nf5
{[%clk 0:01:49.4]} 14... Rae8 {[%clk 0:02:48.6]} 15. Bf4 {[%clk 0:01:39]} 15...
Bc8 {[%clk 0:02:38.5]} 16. Nxe7+ {[%clk 0:01:32.2]} 16... Qxe7 {[%clk
0:02:40.4]} 17. e5 {[%clk 0:01:11.1]} 17... dxe5 {[%clk 0:02:42.3]} 18. Rxe5
{[%clk 0:01:06.5]} 18... Qxe5 {[%clk 0:02:20.9]} 19. Bxe5 {[%clk 0:01:06.9]}
19... Rxe5 {[%clk 0:02:22.8]} 20. h3 {[%clk 0:01:02.3]} 20... Bb7 {[%clk
0:02:22.2]} 21. Qd2 {[%clk 0:00:40.3]} 21... Rfe8 {[%clk 0:02:23.2]} 22. Qf4
{[%clk 0:00:37.9]} 22... h6 {[%clk 0:02:20.9]} 23. a4 {[%clk 0:00:28.5]} 23...
b4 {[%clk 0:02:18.2]} 24. a5 {[%clk 0:00:25.6]} 24... Rg5 {[%clk 0:02:18]} 25.
g3 {[%clk 0:00:17.6]} 25... Rge5 {[%clk 0:02:18.9]} 26. Kf1 {[%clk 0:00:14.8]}
26... Bc8 {[%clk 0:02:12.5]} 27. Kg2 {[%clk 0:00:14.5]} 27... Bb7+ {[%clk
0:02:13.6]} 28. Kf1 {[%clk 0:00:15.6]} 28... Bc8 {[%clk 0:02:14.3]} 29. Kg2
{[%clk 0:00:15]} 29... Bb7+ {[%clk 0:02:15.6]} 30. Kf1 {[%clk 0:00:14.6]} 30...
Bc8 {[%clk 0:02:08.4]} 31. Kg2 {[%clk 0:00:11.8]} 1/2-1/2

[Event "*** Titled Tuesday Blitz"]
[Site "Chess.com"]
[Date "2019.05.07"]
[Round "3"]
[White "kinga2008"]
[Black "Bigfish1995"]
[Result "0-1"]
[WhiteElo "1941"]
[BlackElo "2939"]
[TimeControl "180+2"]
[EndTime "13:37:01 PDT"]
[Termination "Bigfish1995 won by resignation"]

1. e4 {[%clk 0:02:56.7]} 1... c5 {[%clk 0:00:45]} 2. Nf3 {[%clk 0:02:46.7]} 2...
d6 {[%clk 0:00:46.3]} 3. d4 {[%clk 0:02:46.2]} 3... cxd4 {[%clk 0:00:48.2]} 4.
Nxd4 {[%clk 0:02:47.5]} 4... Nf6 {[%clk 0:00:49.9]} 5. Nc3 {[%clk 0:02:48.7]}
5... a6 {[%clk 0:00:51.5]} 6. f3 {[%clk 0:02:49.5]} 6... e6 {[%clk 0:00:53]} 7.
Be3 {[%clk 0:02:50.4]} 7... h5 {[%clk 0:00:54.5]} 8. Qd2 {[%clk 0:02:51.4]} 8...
Nbd7 {[%clk 0:00:56.1]} 9. O-O-O {[%clk 0:02:52.4]} 9... Qc7 {[%clk 0:00:57.7]}
10. Be2 {[%clk 0:02:53.5]} 10... Be7 {[%clk 0:00:58.7]} 11. h3 {[%clk
0:02:54.4]} 11... Rb8 {[%clk 0:00:59.9]} 12. g4 {[%clk 0:02:55.1]} 12... b5
{[%clk 0:01:01.2]} 13. Rdg1 {[%clk 0:02:54.5]} 13... Ne5 {[%clk 0:00:59.9]} 14.
g5 {[%clk 0:02:44.4]} 14... Nfd7 {[%clk 0:00:59.7]} 15. f4 {[%clk 0:02:44.9]}
15... Nc4 {[%clk 0:00:59.5]} 16. Bxc4 {[%clk 0:02:45.3]} 16... Qxc4 {[%clk
0:01:01.4]} 17. b3 {[%clk 0:02:27.7]} 17... Qc7 {[%clk 0:01:01.4]} 18. g6 {[%clk
0:02:27.3]} 18... Nf6 {[%clk 0:00:46.5]} 19. gxf7+ {[%clk 0:02:20.2]} 19... Kxf7
{[%clk 0:00:48.4]} 20. e5 {[%clk 0:02:15.6]} 20... Ne8 {[%clk 0:00:40.3]} 21.
Qg2 {[%clk 0:02:06.7]} 21... Qxc3 {[%clk 0:00:36.9]} 22. Qg6+ {[%clk 0:02:04.3]}
22... Kf8 {[%clk 0:00:37.2]} 23. Bf2 {[%clk 0:01:54]} 23... Rh6 {[%clk
0:00:37.4]} 24. Qg2 {[%clk 0:01:44.7]} 24... Bb7 {[%clk 0:00:36.3]} 25. Qf1
{[%clk 0:01:39.9]} 25... Qa1+ {[%clk 0:00:37]} 26. Kd2 {[%clk 0:01:40.4]} 26...
Qxf1 {[%clk 0:00:38.5]} 27. Rxf1 {[%clk 0:01:41.4]} 27... Bxh1 {[%clk
0:00:39.9]} 28. Rxh1 {[%clk 0:01:43.3]} 28... dxe5 {[%clk 0:00:40.6]} 29. fxe5
{[%clk 0:01:44.6]} 29... Rc8 {[%clk 0:00:41.8]} 30. Be3 {[%clk 0:01:45.4]} 30...
Rg6 {[%clk 0:00:42.3]} 31. Rf1+ {[%clk 0:01:45.8]} 31... Kg8 {[%clk 0:00:43.4]}
32. c3 {[%clk 0:01:47.3]} 32... Nc7 {[%clk 0:00:44]} 33. Nc6 {[%clk 0:01:47.2]}
33... Nd5 {[%clk 0:00:44.8]} 34. c4 {[%clk 0:01:45.8]} 34... Rxc6 {[%clk
0:00:45.2]} 35. cxd5 {[%clk 0:01:46.3]} 35... exd5 {[%clk 0:00:47.1]} 36. Bd4
{[%clk 0:01:47.2]} 36... Rg3 {[%clk 0:00:47.6]} 37. Rf5 {[%clk 0:01:42]} 37...
Rxh3 {[%clk 0:00:48.7]} 0-1

[Event "*** Titled Tuesday Blitz"]
[Site "Chess.com"]
[Date "2019.05.07"]
[Round "3"]
[White "SwamiChaturanga"]
[Black "zurzan"]
[Result "1-0"]
[WhiteElo "2129"]
[BlackElo "1996"]
[TimeControl "180+2"]
[EndTime "13:37:02 PDT"]
[Termination "SwamiChaturanga won by resignation"]

1. d4 {[%clk 0:03:00.3]} 1... d6 {[%clk 0:03:01.9]} 2. c4 {[%clk 0:03:00.9]}
2... f5 {[%clk 0:03:02.4]} 3. Nc3 {[%clk 0:03:00.4]} 3... Nf6 {[%clk 0:03:03.2]}
4. g3 {[%clk 0:03:01.9]} 4... g6 {[%clk 0:03:03.8]} 5. Bg2 {[%clk 0:03:03.2]}
5... Bg7 {[%clk 0:03:05.1]} 6. Qb3 {[%clk 0:03:01.2]} 6... c6 {[%clk 0:03:03.2]}
7. Nh3 {[%clk 0:02:51.4]} 7... O-O {[%clk 0:03:00.4]} 8. O-O {[%clk 0:02:49.4]}
8... h6 {[%clk 0:02:58.4]} 9. Nf4 {[%clk 0:02:45.3]} 9... Kh7 {[%clk 0:02:56.9]}
10. e4 {[%clk 0:02:41.4]} 10... e5 {[%clk 0:02:56.4]} 11. dxe5 {[%clk 0:02:40]}
11... dxe5 {[%clk 0:02:57.1]} 12. Rd1 {[%clk 0:02:35.4]} 12... Qe7 {[%clk
0:02:53]} 13. Nd3 {[%clk 0:02:02.3]} 13... fxe4 {[%clk 0:02:33.2]} 14. Nxe4
{[%clk 0:02:01.4]} 14... Nbd7 {[%clk 0:02:16.4]} 15. Be3 {[%clk 0:01:58.8]}
15... Nxe4 {[%clk 0:02:15.5]} 16. Bxe4 {[%clk 0:02:00.7]} 16... Nf6 {[%clk
0:02:16.3]} 17. Bc5 {[%clk 0:02:01.8]} 17... Qf7 {[%clk 0:02:12.3]} 18. Bxf8
{[%clk 0:02:00.3]} 18... Bxf8 {[%clk 0:02:07.7]} 19. Nxe5 {[%clk 0:02:00.8]}
19... Qe7 {[%clk 0:01:41.4]} 20. Bxg6+ {[%clk 0:01:46.6]} 20... Kg7 {[%clk
0:01:38.4]} 21. Re1 {[%clk 0:01:44.8]} 21... Qc5 {[%clk 0:01:27.2]} 22. Qc3
{[%clk 0:01:34.6]} 22... Be7 {[%clk 0:01:03.8]} 23. Bc2 {[%clk 0:01:14.4]} 23...
Bh3 {[%clk 0:00:56.7]} 24. Qd3 {[%clk 0:01:05.8]} 24... Kf8 {[%clk 0:00:42.5]}
25. Ng6+ {[%clk 0:00:58.4]} 1-0

[Event "*** Titled Tuesday Blitz"]
[Site "Chess.com"]
[Date "2019.05.07"]
[Round "3"]
[White "Taron_Shagbazyan"]
[Black "kharov2001"]
[Result "1-0"]
[WhiteElo "2735"]
[BlackElo "2525"]
[TimeControl "180+2"]
[EndTime "13:37:13 PDT"]
[Termination "Taron_Shagbazyan won on time"]

1. d4 {[%clk 0:03:01.9]} 1... Nf6 {[%clk 0:02:59.2]} 2. c4 {[%clk 0:02:58.9]}
2... e6 {[%clk 0:02:58.8]} 3. Nc3 {[%clk 0:02:58.6]} 3... Bb4 {[%clk 0:02:59.7]}
4. e3 {[%clk 0:02:55.5]} 4... O-O {[%clk 0:03:00.3]} 5. Bd3 {[%clk 0:02:55.5]}
5... d5 {[%clk 0:03:00]} 6. Nf3 {[%clk 0:02:55.7]} 6... c5 {[%clk 0:02:58.8]} 7.
O-O {[%clk 0:02:55.6]} 7... Bxc3 {[%clk 0:02:48.4]} 8. bxc3 {[%clk 0:02:53.1]}
8... b6 {[%clk 0:02:50.3]} 9. cxd5 {[%clk 0:02:51.8]} 9... exd5 {[%clk
0:02:44.4]} 10. dxc5 {[%clk 0:02:35.7]} 10... bxc5 {[%clk 0:02:43.1]} 11. c4
{[%clk 0:02:36.7]} 11... Be6 {[%clk 0:02:29.4]} 12. cxd5 {[%clk 0:02:35]} 12...
Bxd5 {[%clk 0:02:25.1]} 13. Bb2 {[%clk 0:02:35.6]} 13... Nbd7 {[%clk 0:02:23]}
14. e4 {[%clk 0:02:32.3]} 14... Be6 {[%clk 0:02:21.9]} 15. e5 {[%clk 0:02:32.4]}
15... Nd5 {[%clk 0:02:14.2]} 16. a4 {[%clk 0:02:23.5]} 16... Rb8 {[%clk
0:02:02.5]} 17. Ba3 {[%clk 0:02:16.2]} 17... Nb4 {[%clk 0:01:55.5]} 18. Be4
{[%clk 0:02:17.4]} 18... Qc7 {[%clk 0:01:52.5]} 19. Re1 {[%clk 0:02:15.6]} 19...
Rfd8 {[%clk 0:01:49.5]} 20. Qe2 {[%clk 0:02:08.8]} 20... g6 {[%clk 0:01:39.3]}
21. Bb2 {[%clk 0:02:05.5]} 21... Nb6 {[%clk 0:01:24]} 22. Bc1 {[%clk 0:01:58.8]}
22... N6d5 {[%clk 0:01:16.4]} 23. Bg5 {[%clk 0:01:58]} 23... Re8 {[%clk
0:01:15.5]} 24. Rac1 {[%clk 0:01:59]} 24... Qa5 {[%clk 0:01:09.5]} 25. Qd2
{[%clk 0:01:54]} 25... Nb6 {[%clk 0:00:57.1]} 26. Bf6 {[%clk 0:01:50.8]} 1-0